Workbook

Sheet Исходные данные
A1: НПП "Микропроцессорные технологии"
A2: Пирогов М.Г, Илюхин Е.В.
A3: 2017 год
A5: Исходные данные для расчета уставок защит двухобмоточного трансформатора Алтей-УЗТ
A6: Заполнить белые ячейки, выделенные зеленой рамкой -
I8: Параметры трансформатора | O8: Y/∆
N9: =IF(OR(L10="∆/Y",L10="Y/Y"),SQRT(3)/2,1) -> 1 | O9: ∆/∆
I10: Схема соединения | L10: Y/∆ | O10: ∆/Y | P10: Маслонаполненный
O11: Y/Y | P11: Сухой
I12: Тип трансформатора | L12: Маслонаполненный
I13: Номинальная мощность трансформатора, кВА
J14: 6300
I15: Номинальные напряжения сторон, кВ
J16: 115
J17: 11
I18: Номинальный коэфициент трансформации трансформатора
J19: =J16/J17 -> 10.45454545
I20: Параметры регулирования напряжения
J21: 1.78 | K21: - шаг регулирования напряжения устройством РПН, %
J22: 5 | K22: - количество ступеней, используемых для регулирования напряжения в большую сторону
J23: 9 | K23: - количество ступеней, используемых для регулирования напряжения в меньшую сторону
I26: Параметры ТТ и ТН
I28: Коэффициент трансформации ТТ стороны ВН
J29: = | K29: 100 | L29: / | M29: 5 | N29: = | O29: =K29/M29 -> 20
I30: Коэффициент трансформации ТТ стороны НН
J31: = | K31: 600 | L31: / | M31: 5 | N31: = | O31: =K31/M31 -> 120
I32: Коэффициент трансформации ТН стороны НН
J33: = | K33: 10000 | L33: / | M33: 100 | N33: = | O33: =K33/M33 -> 100
I36: Режимы работы
I38: Максимальная кратность реальной длительно возможной перегрузки трансформатора (относительно номинального тока трансформатора)
J39: 1.4
I40: Максимальная кратность тока нагрузки своей секции шин стороны НН (относительно номинального тока трансформатора)
J41: 0.7
I42: Первичное среднее номинальное напряжение сети на стороне НН, В
J43: 10500
A46: Тип нагрузки на стороне НН | I46: Токи короткого замыкания, приведенные к стороне ВН
A47: Промышленная (Uдвиг<=1000 В) | F47: Промышленная (Uдвиг<=1000 В)
F48: Сельская общего назначения | I48: В точке К1 - на шинах ВН
F49: Городская общего назначения | J49: 2457 | K49: - максимальный ток трехфазного КЗ, А
A50: Роль МТЗ | J50: 2125 | K50: - минимальный ток трехфазного КЗ, А
A51: Резервная | F51: Резервная | G51: =IF(A51="Резервная",1.2,1.5) -> 1.2
F52: Основная | I52: В точке К2 - на шинах НН
A53: Нагрузка | G53: Введите кнб | J53: 346 | K53: - максимальный ток трехфазного КЗ, А
A54: Симметричная | G54: 0.4 | H54: Симметричная | J54: 234 | K54: - минимальный ток трехфазного КЗ, А
H55: Несимметричная
A56: Роль ТЗОП | I56: В точке К3 - в конце зоны резервирования (минимальный ток КЗ)
A57: Резервная | F57: Резервная | G57: =IF(A57=F57,1.2,1.5) -> 1.2 | J57: 129 | K57: - минимальный ток трехфазного КЗ, А
F58: Основная | J58: 5070 | K58: - максимальное линейное напряжение на шинах НН при трехфазном КЗ в точке К3, В
J59: 1710 | K59: - минимальное напряжение обратной последовательности на шинах НН при двухфазном КЗ в точке К3, В
I62: Уставки защит с которыми производится согласование
J64: 28 | K64: - значение уставки срабатывания МТЗ на присоединении СВ НН, приведенное к стороне ВН, А
J65: 1.1 | K65: - значение уставки задержки срабатывания МТЗ на присоединении СВ НН, с
J67: 2.63 | K67: - значение максимальной уставки срабатывания МТЗ присоединений собственной секции шин, приведенное к стороне ВН, А
J68: 0.8 | K68: - значение максимальной задержки срабатывания МТЗ присоединений собственной секции шин, с

Sheet Расчет уставок
A1: № п.п. | B1: Величина | C1: Обозначение | D1: Формула | F1: Расчет | G1: Примечание | H1: Значение для ввода в устройство
A2: 1. Выбор диапазона измерений токов
A3: 1.1 | B3: Номинальный вторичный ток стороны ВН трансформатора, А | D3: 9.1 | F3: ='Исходные данные'!J14/(3^0.5*'Исходные данные'!J16*'Исходные данные'!O29) -> 1.581437694 | G3: - | H3: -
A4: 1.2 | B4: Номинальный ток диапазона измерений токов стороны ВН, А | D4: - | E4: - | F4: =IF(F3>1,5,1) -> 5 | G4: В соответствии с п. 9.2.3 | H4: =F4 -> 5
A5: 1.3 | B5: Номинальный вторичный ток стороны НН трансформатора, А | D5: 9.2 | F5: ='Исходные данные'!J14/(3^0.5*'Исходные данные'!J17*'Исходные данные'!O31) -> 2.755535376 | G5: - | H5: -
A6: 1.4 | B6: Номинальный ток диапазона измерений токов стороны НН, А | D6: - | E6: - | F6: =IF(F5>1,5,1) -> 5 | G6: В соответствии с п. 9.2.3 | H6: =F6 -> 5
A7: 1.5 | B7: Проверка входов измерения токов ВН | C7: - | D7: 9.3 | F7: =2*'Исходные данные'!J49/'Исходные данные'!O29 -> 245.7 | G7: =IF(F4*100>=F7,"Условие выполняется","Условие НЕ выполняется") -> Условие выполняется | H7: -
A8: 1.6 | B8: Проверка входов измерения токов ВН | C8: - | D8: 9.4 | F8: =2*'Исходные данные'!J53/'Исходные данные'!O31*'Исходные данные'!J16/'Исходные данные'!J17 -> 60.28787879 | G8: =IF(F6*100>=F8,"Условие выполняется","Условие НЕ выполняется") -> Условие выполняется | H8: -
A9: 2. Дифференциальная токовая защита (ДТО и ДЗТ)
A10: 2.1 | B10: Номинальный ток обмотки ВН трансформатора, А | D10: 10.3 | F10: ='Исходные данные'!J14/3^0.5/'Исходные данные'!J16 -> 31.62875388 | G10: - | H10: -
A11: 2.2 | B11: Максимальный ток небаланса в режиме внешнего КЗ, о.е. | D11: 10.2 | F11: =(J11*J12+'Исходные данные'!J21*MAX('Исходные данные'!J22:J23)+J13)/100*'Исходные данные'!J53/F10 -> 5.034317843 | G11: - | H11: - | J11: 2.5
J12: 10
J13: 5
A14: 2.3 | B14: Уставка срабатывания ДТО по условию отстройки от тока небаланса, о.е. | D14: 10.1 | F14: =ROUNDUP(J14*F11,2) -> 6.55 | G14: - | H14: - | J14: 1.3
A15: 2.4 | B15: Уставка срабатывания ДТО по условию отстройки от БТН, о.е. | D15: - | E15: - | F15: 6 | G15: В соответствии с п. 10.2.4 | H15: -
A16: 2.5 | B16: Выбранное значение уставки срабатывания ДТО, о.е. | D16: - | E16: - | F16: =MAX(F14:F15) -> 6.55 | G16: максимальное значение из п.п. 2.3 и 2.4 | H16: =F16 -> 6.55
A17: 2.6 | B17: Уставка ток начала торможения первого участка ДЗТ, о.е. | D17: - | E17: - | F17: - | G17: В соответствии с п. 10.3.2 | H17: 1
A18: 2.7 | B18: Уставка ток начала торможения второго участка ДЗТ, о.е. | D18: - | E18: - | F18: =IF(CELL("содержимое",'Исходные данные'!L12)="Маслонаполненный",2,IF(CELL("содержимое",'Исходные данные'!L12)="Сухой",1.6,"Ошибка: неверно задан вид трансформатора")) -> 2 | G18: В соответствии с п. 10.3.2 | H18: =F18 -> 2
A19: 2.8 | B19: Ток небаланса, соответствующий току начала торможения первого участка, о.е. | D19: 10.5 | F19: =(J19*J20+'Исходные данные'!J21*MAX('Исходные данные'!J22:J23)+J21)/100*H17 -> 0.3102 | G19: - | H19: - | J19: 1
J20: 10
J21: 5
A22: 2.9 | B22: Уставка начального тока срабатывания ДЗТ, о.е. | D22: 10.4 | F22: =ROUNDUP(J22*F19,2) -> 0.41 | G22: - | H22: =F22 -> 0.41 | J22: 1.3
A23: 2.10 | B23: Ток небаланса, соответствующий току начала торможения второго участка, о.е. | D23: 10.8 | F23: =(J23*J24+'Исходные данные'!J21*MAX('Исходные данные'!J22:J23)+J25)/100*H18 -> 0.7204 | G23: - | H23: - | J23: 1.5
J24: 10
J25: 5
A26: 2.11 | B26: Ток срабатывания ДЗТ при токе торможения, равном току начала торможения второго участка, о.е. | D26: 10.7 | F26: =J26*F23 -> 0.93652 | G26: - | H26: - | J26: 1.3
A27: 2.12 | B27: Уставка коэффициента торможения первого участка ДЗТ | D27: 10.6 | F27: =ROUNDUP((F26-H22)/(H18-H17),2) -> 0.53 | G27: - | H27: =F27 -> 0.53
A28: 2.13 | B28: Ток торможения, соответствующий максимальному току внешнего КЗ, о.е. | D28: 10.10 | F28: ='Исходные данные'!J53/F10-F11/2 -> 8.422254036 | G28: - | H28: -
A29: 2.14 | B29: Уставка коэффициента торможения второго участка ДЗТ | D29: 10.9 | F29: =ROUNDUP((F14-F26)/(F28-H18),2) -> 0.88 | G29: - | H29: =F29 -> 0.88
A30: 2.15 | B30: Уставка тока срабатывания ДЗТ грубого органа, о.е. | D30: 10.11 | F30: =ROUNDUP(J30*'Исходные данные'!J39,2) -> 1.54 | G30: - | H30: =F30 -> 1.54 | J30: 1.1
A31: 2.16 | B31: Уставка задержки срабатывания ДЗТ, с | D31: - | E31: - | F31: - | G31: В соответствии с п. 10.3.7 | H31: 0
A32: 2.17 | B32: Уставка блокирования ДЗТ по второй гармонике, о.е. | D32: - | E32: - | F32: - | G32: В соответствии с п. 10.3.8 | H32: 0.15
A33: 2.18 | B33: Уставка максимальной длительности перекрестного блокирования, с | D33: - | E33: - | F33: - | G33: В соответствии с п. 10.3.9 | H33: 2
A34: 2.19 | B34: Относительное значение минимального тока КЗ на выводах трансформатора, о.е. | D34: 10.15 | F34: =3^0.5/2*'Исходные данные'!J54/F10 -> 6.407142857 | G34: - | H34: -
A35: 2.20 | B35: Уставка срабатывания ДЗТ при минимальном токе КЗ на выводах трансформатора, о.е. | D35: 10.14 | F35: =IF(F34<=2*H17,H22,IF(AND(2*H17<F34,F34<=2*H18),(F34/2-H17)*H27+H22,(F34/2-H18)*H29+F26)) -> 1.995662857 | G35: - | H35: -
A36: 2.21 | B36: Коэффициент чувствительности ДЗТ | D36: 10.16 | F36: =F34/F35 -> 3.2105337 | G36: =IF(F36<2,"Низкая чувствительность","Чувствительность в норме") -> Чувствительность в норме | H36: -
A37: 2.22 | B37: Коэффициент чувствительности грубого органа ДЗТ | D37: 10.17 | F37: =F34/H30 -> 4.160482375 | G37: =IF(F37<2,"Низкая чувствительность","Чувствительность в норме") -> Чувствительность в норме | H37: -
A38: 2.24 | B38: Уставка тока срабатывания сигнализации небаланса, о.е. | D38: 10.18 | F38: =ROUNDUP(J38*F19,2) -> 0.33 | G38: - | H38: =F38 -> 0.33 | J38: 1.05
A39: 2.25 | B39: Уставка задержки срабатывания сигнализации небаланса, с | D39: - | E39: - | F39: - | G39: В соответствии с п. 10.4.3 | H39: 10
A40: 3. Токовая отсечка стороны ВН (ТО ВН)
A41: 3.1 | B41: Уставка тока срабатывания ТО ВН по условию отстройки от тока КЗ на стороне НН, А | D41: 11.1 | F41: =J41*'Исходные данные'!J53 -> 449.8 | G41: - | H41: - | J41: 1.3
A42: 3.2 | B42: Уставка тока срабатывания ТО ВН по условию отстройки от БТН, А | D42: 11.2 | F42: =J42*F10 -> 189.7725233 | G42: - | H42: - | J42: 6
A43: 3.3 | B43: Выбранное значение уставки тока срабатывания ТО ВН, А | D43: - | E43: - | F43: =MAX(F41:F42) -> 449.8 | G43: максимальное значение из п.п. 3.1 и 3.2 | H43: =ROUNDUP(F43/'Исходные данные'!O29,2) -> 22.49
A44: 3.4 | B44: Коэффициент чувствительности ТО ВН | D44: 11.3 | F44: =3^0.5/2*'Исходные данные'!J50/'Расчет уставок'!F43 -> 4.091382799 | G44: Проверку чувствительности следует выполнять только в случае неиспользования ДЗТ | H44: =IF('Исходные данные'!J14<6300,'Расчет уставок'!F44,"-") -> - | I44: =IF('Исходные данные'!J14<6300,"ТО - основная","ТО - резервная") -> ТО - резервная
A45: 3.5 | B45: Уставка задержки срабатывания ТО ВН, с | D45: - | E45: - | F45: - | G45: В соответствии с п. 11.2.1 | H45: 0
A46: 4. Максимальная токовая защита стороны НН (МТЗ НН)
A47: 4.1 | B47: Уставка тока срабатывания МТЗ НН по условию отстройки от режима самозапуска, А | D47: 12.1 | F47: =J47*J48*J50/J49*F10 -> 279.6647711 | G47: - | H47: - | J47: 1.2
J48: =IF(CELL("содержимое",'Исходные данные'!A47:E47)='Исходные данные'!F48,2,IF(CELL("содержимое",'Исходные данные'!A47:E47)='Исходные данные'!F49,2.5,IF(CELL("содержимое",'Исходные данные'!A47:E47)='Исходные данные'!F47,5,"Выберите тип сети в исходных данных"))) -> 5
J49: 0.95
J50: ='Исходные данные'!J39 -> 1.4
A51: 4.2 | B51: Уставка тока срабатывания МТЗ НН по условию согласования с МТЗ предыдущего элемента, А | D51: 12.2 | F51: =J51*('Исходные данные'!J64+'Исходные данные'!J41*'Расчет уставок'!F10) -> 55.15414049 | G51: Согласование с уставкой МТЗ на СВ НН | H51: - | J51: 1.1
A52: 4.3 | B52: Коэффициент чувствительности МТЗ НН к КЗ на шинах НН | D52: 12.3 | F52: =3^0.5/2*'Исходные данные'!J54/MAX(F47,F51) -> 0.7246173469 | G52: =IF(F52<1.5,"кч не удовлетворяет требованиям ПУЭ. Следует использовать пуск по напряжению","кч удовлетворяет требованиям ПУЭ") -> кч не удовлетворяет требованиям ПУЭ. Следует использовать пуск по напряжению | H52: - | I52: =IF(OR(F52<1.5,F53<1.2),0,1) -> 0
A53: 4.4 | B53: Коэффициент чувствительности МТЗ НН к КЗ в конце зоны резервирования | D53: 12.3 | F53: =3^0.5/2*'Исходные данные'!J57/MAX(F47,F51) -> 0.3994685374 | G53: =IF(F53<1.2,"кч не удовлетворяет требованиям ПУЭ. Следует использовать пуск по напряжению","кч удовлетворяет требованиям ПУЭ") -> кч не удовлетворяет требованиям ПУЭ. Следует использовать пуск по напряжению | H53: -
A54: 4.5 | B54: Пересчет уставки тока срабатывания МТЗ НН по условию отстройки от режима длительно допустимой перегрузки (без учета самозапуска), А | D54: 12.1 | F54: =J47*J50/J49*F10 -> 55.93295423 | G54: Значение уставки, пересчитанное без учета режима самозапуска | H54: -
A55: 4.6 | B55: Коэффициент чувствительности МТЗ НН к КЗ на шинах НН | D55: 12.3 | F55: =3^0.5/2*'Исходные данные'!J54/MAX(F51,F54) -> 3.623086735 | G55: =IF(F55<1.5,"кч не удовлетворяет требованиям ПУЭ","кч удовлетворяет требованиям ПУЭ") -> кч удовлетворяет требованиям ПУЭ | H55: -
A56: 4.7 | B56: Коэффициент чувствительности МТЗ НН к КЗ в конце зоны резервирования | D56: 12.3 | F56: =3^0.5/2*'Исходные данные'!J57/MAX(F54,F51) -> 1.997342687 | G56: =IF(F56<1.2,"кч не удовлетворяет требованиям ПУЭ","кч удовлетворяет требованиям ПУЭ") -> кч удовлетворяет требованиям ПУЭ | H56: -
A57: 4.8 | B57: Выбранное значение уставки МТЗ НН, А | D57: - | E57: - | F57: =IF(OR(F52<1.5,F53<1.2),MAX(F51,F54),MAX(F47,F51)) -> 55.93295423 | G57: максимальное значение из п.п. 4.5 и 4.2 (если не учитывать самозапуск двигателей) или максимальное значение из п.п. 4.1 и 4.2 (если учитывать самозапуск двигателей) | H57: =ROUNDUP(F57*'Исходные данные'!J19/'Исходные данные'!O31,2) -> 4.88
A58: 4.9 | B58: Уставка линейного напряжения срабатывания ПОН, В | D58: 12.5 | F58: =1/J58*J59*'Исходные данные'!J43 -> 6125 | G58: - | H58: =F58/'Исходные данные'!O33 -> 61.25 | J58: 1.2
J59: 0.7
A60: 4.10 | B60: Уставка напряжения обратной последовательности срабатывания ПОН, В | D60: - | E60: - | F60: - | G60: В соответствии с п. 12.2.5.5 | H60: 6
A61: 4.11 | B61: Коэффициент чувствительности уставки линейного напряжения ПОН к КЗ в конце зоны резервирования | D61: 12.6 | F61: =F58/'Исходные данные'!J58 -> 1.208086785 | G61: =IF(F61<1.2,"кч не удовлетворяет требованиям ПУЭ","кч удовлетворяет требованиям ПУЭ") -> кч удовлетворяет требованиям ПУЭ | H61: -
A62: 4.12 | B62: Коэффициент чувствительности уставки напряжения обратной последовательности ПОН к КЗ в конце зоны резервирования | D62: 12.7 | F62: ='Исходные данные'!J59/('Расчет уставок'!H60*'Исходные данные'!O33) -> 2.85 | G62: =IF(F62<1.2,"кч не удовлетворяет требованиям ПУЭ","кч удовлетворяет требованиям ПУЭ") -> кч удовлетворяет требованиям ПУЭ | H62: -
A63: 4.13 | B63: Уставка задержки срабатывания МТЗ НН на отключение СВ НН, с | D63: - | E63: - | F63: - | G63: В соответствии с уставкой МТЗ, установленной на СВ | H63: ='Исходные данные'!J65 -> 1.1
A64: 4.14 | B64: Уставка задержки срабатывания МТЗ НН на отключение ВВ НН, с | D64: - | F64: =H63+J64 -> 1.4 | G64: Значение ступени селективности принято равным 0,3 с | H64: =F64 -> 1.4 | J64: 0.3
A65: 4.15 | B65: Уставка задержки отключения трансформатора от МТЗ НН, с | D65: - | F65: =J64 -> 0.3 | G65: Значение ступени селективности принято равным 0,3 с | H65: =F65 -> 0.3
A66: 4.16 | B66: Уставка тока срабатывания МТЗ НН при отключенном СВ НН по условию отстройки от режима длительно допустимой перегрузки, А | D66: 12.1 | F66: =J66*J68/J67*F10 -> 27.96647711 | G66: Максимальная нагрузка в режиме с отключенным СВ НН принята равной 70% от номинальной | H66: - | J66: 1.2
J67: 0.95
J68: ='Исходные данные'!J41 -> 0.7
A69: 4.17 | B69: Уставка тока срабатывания МТЗ НН при отключенном СВ НН по условию согласования с МТЗ предыдущего элемента, А | D69: 12.2 | F69: =J69*('Исходные данные'!J67+'Исходные данные'!J41*'Расчет уставок'!F10) -> 27.24714049 | G69: - | H69: - | J69: 1.1
A70: 4.18 | B70: Выбранное значение уставки МТЗ НН при отключенном СВ НН, А | D70: - | E70: - | F70: =MAX(F66,F69) -> 27.96647711 | G70: максимальное значение из п.п. 4.12 и 4.13 | H70: =ROUNDUP(F70*'Исходные данные'!J19/'Исходные данные'!O31,2) -> 2.44
A71: 4.19 | B71: Коэффициент чувствительности МТЗ НН при отключенном СВ НН к КЗ на шинах НН | D71: 12.3 | F71: =3^0.5/2*'Исходные данные'!J54/'Расчет уставок'!F70 -> 7.246173469 | G71: =IF(F71<1.5,"кч не удовлетворяет требованиям ПУЭ. Следует использовать пуск по напряжению","кч удовлетворяет требованиям ПУЭ") -> кч удовлетворяет требованиям ПУЭ | H71: -
A72: 4.20 | B72: Коэффициент чувствительности МТЗ НН при отключенном СВ НН к КЗ в конце зоны резервирования | D72: 12.3 | F72: =3^0.5/2*'Исходные данные'!J57/'Расчет уставок'!F70 -> 3.994685374 | G72: =IF(F72<1.2,"кч не удовлетворяет требованиям ПУЭ. Следует использовать пуск по напряжению","кч удовлетворяет требованиям ПУЭ") -> кч удовлетворяет требованиям ПУЭ | H72: -
A73: 4.21 | B73: Уставка задержки срабатывания МТЗ НН при отключенном СВ НН на отключение ВВ НН, с | D73: - | E73: - | F73: - | G73: В соответствии с уставкой МТЗ, установленной на СВ | H73: ='Исходные данные'!J65 -> 1.1
A74: 5. Максимальная токовая защита стороны ВН (МТЗ ВН)
A75: 5.1 | B75: Уставка тока срабатывания МТЗ ВН по условию отстройки от режима самозапуска, А | D75: 13.1 | F75: =J75*J76*J78/J77*F10 -> 279.6647711 | G75: - | H75: - | J75: 1.2
J76: =J48 -> 5
J77: 0.95
J78: ='Исходные данные'!J39 -> 1.4
A79: 5.2 | B79: Уставка тока срабатывания МТЗ НН по условию согласования с МТЗ предыдущего элемента, А | D79: 13.2 | F79: =J79*F57 -> 61.52624965 | G79: Согласование с уставкой МТЗ НН | H79: - | J79: 1.1
A80: 5.3 | B80: Коэффициент чувствительности МТЗ ВН к КЗ на шинах НН | D80: 13.3 | F80: =J80*'Исходные данные'!J54/MAX('Расчет уставок'!F75,'Расчет уставок'!F79) -> 0.8367160406 | G80: =IF(F80<'Исходные данные'!G51,"кч не удовлетворяет требованиям ПУЭ. Следует использовать пуск по напряжению","кч удовлетворяет требованиям ПУЭ") -> кч не удовлетворяет требованиям ПУЭ. Следует использовать пуск по напряжению | H80: - | J80: ='Исходные данные'!N9 -> 1
A81: 5.4 | B81: Пересчет уставки тока срабатывания МТЗ ВН по условию отстройки от режима длительно допустимой перегрузки (без учета самозапуска), А | D81: 13.1 | F81: =J75*J78/J77*F10 -> 55.93295423 | G81: Значение уставки, пересчитанное без учета режима самозапуска | H81: -
A82: 5.5 | B82: Коэффициент чувствительности МТЗ ВН к КЗ на шинах НН | D82: 13.3 | F82: =J80*'Исходные данные'!J54/MAX(F81,F79) -> 3.80325473 | G82: =IF(F82<1.2,"кч не удовлетворяет требованиям ПУЭ","кч удовлетворяет требованиям ПУЭ") -> кч удовлетворяет требованиям ПУЭ | H82: -
A83: 5.6 | B83: Выбранное значение уставки МТЗ ВН, А | D83: - | E83: - | F83: =IF(F80<'Исходные данные'!G51,MAX(F81,F79),MAX(F75,F79)) -> 61.52624965 | G83: максимальное значение из п.п. 5.4 и 4.2 (если не учитывать самозапуск двигателей) или максимальное значение из п.п. 5.1 и 5.2 (если учитывать самозапуск двигателей) | H83: =ROUNDUP(F83/'Исходные данные'!O29,2) -> 3.08
A84: 5.7 | B84: Уставка задержки срабатывания МТЗ ВН, с | D84: - | F84: =H64+J84 -> 1.7 | G84: Значение ступени селективности принято равным 0,3 с | H84: =F84 -> 1.7 | J84: 0.3
A85: 5.8 | B85: Уставка тока срабатывания МТЗ ВН при отключенном СВ НН по условию отстройки от режима длительно допустимой перегрузки, А | D85: 13.1 | F85: =J85*J87/J86*F10 -> 27.96647711 | G85: Максимальная нагрузка в режиме с отключенным СВ НН принята равной 70% от номинальной | H85: - | J85: 1.2
J86: 0.95
J87: ='Исходные данные'!J41 -> 0.7
A88: 5.9 | B88: Уставка тока срабатывания МТЗ ВН при отключенном СВ НН по условию согласования с МТЗ предыдущего элемента, А | D88: 13.2 | F88: =J88*F70 -> 30.76312482 | G88: - | H88: - | J88: 1.1
A89: 5.10 | B89: Выбранное значение уставки МТЗ ВН при отключенном СВ НН, А | D89: - | E89: - | F89: =MAX(F88,F85) -> 30.76312482 | G89: максимальное значение из п.п. 5.8 и 5.9 | H89: =ROUNDUP(F89/'Исходные данные'!O29,2) -> 1.54
A90: 5.11 | B90: Коэффициент чувствительности МТЗ ВН при отключенном СВ НН к КЗ на шинах НН | D90: 13.3 | F90: =J80*'Исходные данные'!J54/'Расчет уставок'!F89 -> 7.60650946 | G90: =IF(F90<1.2,"кч не удовлетворяет требованиям ПУЭ","кч удовлетворяет требованиям ПУЭ") -> кч удовлетворяет требованиям ПУЭ | H90: -
A91: 5.12 | B91: Уставка задержки срабатывания МТЗ ВН при отключенном СВ НН, с | D91: - | F91: =H73+J84 -> 1.4 | G91: Значение ступени селективности принято равным 0,3 с | H91: =F91 -> 1.4
A92: 6. Защита от перегрузки (ЗП)
A93: 6.1 | B93: Уставка тока срабатывания защиты от перегрузки, А | D93: 14.1 | F93: =J93/J94*F10 -> 34.95809639 | G93: - | H93: =ROUNDUP(F93/'Исходные данные'!O29,2) -> 1.75 | J93: 1.05
J94: 0.95
A95: 6.2 | B95: Уставка задержки срабатывания ЗП, с | D95: - | E95: - | F95: - | G95: В соответствии с п. 14.2.2 | H95: 10
A96: 7. Логическая защита шин (ЛЗШ)
A97: 7.1 | B97: Уставка задержки срабатывания ЛЗШ, с | D97: - | E97: - | F97: 0.1 | G97: В соответствии с п. 15.2.2 | H97: =F97 -> 0.1
A98: 8. Логическая защита трансформатора (ЛЗТ)
A99: 8.1 | B99: Уставка задержки срабатывания ЛЗТ, с | D99: - | E99: - | F99: 0.5 | G99: В соответствии с п. 15.3.3 | H99: =F99 -> 0.5
A100: 9. Защита от дуговых замыканий (ЗДЗ)
A101: 9.1 | B101: Уставка пускового органа ЗДЗ по току, А | D101: 16.1 | F101: =J101*J103/J102*F10 -> 55.93295423 | G101: - | H101: =ROUNDUP(F101/'Исходные данные'!O29,2) -> 2.8 | J101: 1.2
J102: 0.95
J103: ='Исходные данные'!J39 -> 1.4
A104: 10. Токовая защита обратной последовательности стороны НН (ТЗОП НН)
A105: 10.1 | B105: Уставка тока срабатывания ТЗОП НН по условию отстройки от тока небаланса в нормальном режиме, А | D105: 17.1 | F105: =J105*J107/J106*F10 -> 4.661079519 | G105: - | H105: - | J105: =IF('Исходные данные'!A54='Исходные данные'!H54,0.1,'Исходные данные'!G54) -> 0.1
J106: 0.95
J107: ='Исходные данные'!J39 -> 1.4
A108: 10.2 | B108: Уставка тока срабатывания ТЗОП НН по условию согласования с МТЗ предыдущего элемента, А | D108: 17.2 | F108: =J108*'Исходные данные'!J64/3^0.5 -> 17.78238829 | G108: Согласование с уставкой МТЗ на СВ НН | H108: - | J108: 1.1
A109: 10.3 | B109: Выбранное значение уставки тока срабатывания ТЗОП НН, А | D109: - | E109: - | F109: =MAX(F108,F105) -> 17.78238829 | G109: максимальное значение из п.п. 7.1 и 7.2 | H109: =ROUNDUP(F109*'Исходные данные'!J19/'Исходные данные'!O31,2) -> 1.55
A110: 10.4 | B110: Коэффициент чувствительности ТЗОП НН к КЗ на шинах НН | D110: 17.3 | F110: ='Исходные данные'!J54/(2*F109) -> 6.579543652 | G110: =IF(F110<1.5,"кч не удовлетворяет требованиям ПУЭ","кч удовлетворяет требованиям ПУЭ") -> кч удовлетворяет требованиям ПУЭ | H110: -
A111: 10.5 | B111: Коэффициент чувствительности ТЗОП НН к КЗ в конце зоны резервирования | D111: 17.3 | F111: ='Исходные данные'!J57/(2*F109) -> 3.627184321 | G111: =IF(F111<1.2,"кч не удовлетворяет требованиям ПУЭ","кч удовлетворяет требованиям ПУЭ") -> кч удовлетворяет требованиям ПУЭ | H111: -
A112: 10.6 | B112: Уставка задержки срабатывания ТЗОП НН на отключение ВВ НН, с | D112: - | F112: =F64 -> 1.4 | G112: В соответствии с п. 15.2.1.5 | H112: =F112 -> 1.4
A113: 10.7 | B113: Уставка задержки отключения трансформатора от ТЗОП НН, с | D113: - | F113: =F65 -> 0.3 | G113: В соответствии с п. 17.2.1.6 | H113: =F113 -> 0.3
A114: 11. Токовая защита обратной последовательности стороны ВН (ТЗОП ВН)
A115: 11.1 | B115: Уставка тока срабатывания ТЗОП ВН по условию согласования с ТЗОП НН, А | D115: 17.4 | F115: =J115*F109 -> 19.56062712 | G115: - | H115: =F115/'Исходные данные'!O29 -> 0.978031356 | J115: 1.1
A116: 11.2 | B116: Коэффициент чувствительности ТЗОП ВН к КЗ на шинах НН | D116: 17.5 | F116: ='Исходные данные'!J54/(2*'Расчет уставок'!F115) -> 5.98140332 | G116: =IF(F116<'Исходные данные'!G57,"кч не удовлетворяет требованиям ПУЭ","кч удовлетворяет требованиям ПУЭ") -> кч удовлетворяет требованиям ПУЭ | H116: -
A117: 11.3 | B117: Уставка задержки срабатывания ТЗОП ВН, с | D117: - | F117: =F84 -> 1.7 | G117: В соответствии с п. 17.3.1.3 | H117: =F117 -> 1.7
A118: 12. Газовая защита (ГЗ)
A119: 12.1 | B119: Уставка задержки срабатывания первой ступени ГЗ, с | D119: - | E119: - | F119: 0 | G119: В соответствии с п. 19.2.1 | H119: =F119 -> 0
A120: 12.2 | B120: Уставка задержки срабатывания второй ступени ГЗ, с | D120: - | E120: - | F120: 0 | G120: В соответствии с п. 19.2.1 | H120: =F120 -> 0
A121: 12.3 | B121: Уставка задержки срабатывания ГЗ РПН, с | D121: - | E121: - | F121: 0 | G121: В соответствии с п. 19.2.1 | H121: =F121 -> 0
A122: 12.4 | B122: Уставка задержки срабатывания контроля изоляции цепей ГЗ, с | D122: - | E122: - | F122: 0 | G122: В соответствии с п. 19.2.2 | H122: =F122 -> 0
A123: 12.5 | B123: Уставка задержки срабатывания сигнализации отсутствия питания цепей ГЗ, с | D123: - | E123: - | F123: 10 | G123: Отстроена с запасом от времени действия защит и АВР цепей питания | H123: =F123 -> 10
A124: 13. УРОВ
A125: 13.1 | B125: Уставка токового органа УРОВ, А | D125: - | E125: - | F125: =IF(H6=1,0.1,0.5) -> 0.5 | G125: В соответствии с п. 22.2.1 | H125: =F125 -> 0.5
A126: 13.2 | B126: Уставка задержки срабатывания УРОВ, с | D126: 22.1 | F126: =IF(J126+J127+J128<0.2,0.2,J126+J127+J128) -> 0.2 | G126: В соответствии с п. 22.2.1 | H126: =ROUNDUP(MAX(0.2,F126),2) -> 0.2 | J126: 0.045
J127: 0.02
J128: 0.1

Sheet Результаты расчета
A1: Уставка | B1: Обозначение | C1: Значение для ввода в устройство
A2: Номинальный ток диапазона измерений токов стороны ВН, А | C2: ='Расчет уставок'!$H$4 -> 5
A3: Номинальный ток диапазона измерений токов стороны НН, А | C3: ='Расчет уставок'!$H$6 -> 5
A4: ДТО и ДЗТ
A5: Ток срабатывания ДТО, о.е. | C5: ='Расчет уставок'!H16 -> 6.55
A6: Ток начала торможения первого участка ДЗТ, о.е. | C6: ='Расчет уставок'!H17 -> 1
A7: Ток начала торможения второго участка ДЗТ, о.е. | C7: ='Расчет уставок'!H18 -> 2
A8: Начальный ток срабатывания ДЗТ, о.е. | C8: ='Расчет уставок'!H22 -> 0.41
A9: Коэффициент торможения первого участка ДЗТ | C9: ='Расчет уставок'!H27 -> 0.53 | H9: ДЗТ | J9: ДЗТ | L9: Небаланс | N9: Безусловное
A10: Коэффициент торможения второго участка ДЗТ | C10: ='Расчет уставок'!H29 -> 0.88 | H10: 0 | I10: =C8 -> 0.41 | J10: 0 | K10: =C5 -> 6.55 | L10: =J10 -> 0 | M10: =C15 -> 0.33 | N10: =O10/1.5 -> 0.2733333333 | O10: =I10 -> 0.41
A11: Ток срабатывания ДЗТ грубого органа, о.е. | C11: ='Расчет уставок'!H30 -> 1.54 | H11: =C6 -> 1 | I11: =C8 -> 0.41 | J11: =ROUNDUP(H13,0) -> 9 | K11: =C5 -> 6.55 | L11: =J11 -> 9 | M11: =C15 -> 0.33 | N11: =O11/1.5 -> 4.366666667 | O11: =K11 -> 6.55
A12: Задержка срабатывания ДЗТ, с | C12: ='Расчет уставок'!H31 -> 0 | H12: =C7 -> 2 | I12: =(C8+(C7-C6)*C9) -> 0.94
A13: Уставка блокирования ДЗТ по второй гармонике, о.е. | C13: ='Расчет уставок'!H32 -> 0.15 | H13: ='Расчет уставок'!F28 -> 8.422254036 | I13: =(I12+(H13-H12)*C10) -> 6.591583552
A14: Максимальная длительность перекрестного блокирования, с | C14: ='Расчет уставок'!H33 -> 2
A15: Ток срабатывания сигнализации небаланса, о.е. | C15: ='Расчет уставок'!H38 -> 0.33
A16: Задержка срабатывания сигнализации небаланса, с | C16: ='Расчет уставок'!H39 -> 10
A17: ТО ВН
A18: Ток срабатывания ТО ВН, А | C18: ='Расчет уставок'!H43 -> 22.49
A19: Задержка срабатывания ТО ВН, с | C19: ='Расчет уставок'!H45 -> 0
A20: МТЗ НН
A21: Ток срабатывания МТЗ НН, А | C21: ='Расчет уставок'!H57 -> 4.88
A22: Линейное напряжение срабатывания ПОН, В | C22: ='Расчет уставок'!H58 -> 61.25
A23: Напряжение обратной последовательности срабатывания ПОН, В | C23: ='Расчет уставок'!H60 -> 6
A24: Задержка срабатывания МТЗ НН на отключение СВ НН, с | C24: ='Расчет уставок'!H63 -> 1.1
A25: Задержка срабатывания МТЗ НН на отключение ВВ НН, с | C25: ='Расчет уставок'!H64 -> 1.4
A26: Задержка отключения трансформатора от МТЗ НН, с | C26: ='Расчет уставок'!H65 -> 0.3
A27: Ток срабатывания МТЗ НН при отключенном СВ НН, А | C27: ='Расчет уставок'!H70 -> 2.44
A28: Задержка срабатывания МТЗ НН при отключенном СВ НН на отключение ВВ НН, с | C28: ='Расчет уставок'!H73 -> 1.1
A29: МТЗ ВН
A30: Ток срабатывания МТЗ ВН, А | C30: ='Расчет уставок'!H83 -> 3.08
A31: Задержка срабатывания МТЗ ВН, с | C31: ='Расчет уставок'!H84 -> 1.7
A32: Ток срабатывания МТЗ ВН при отключенном СВ НН, А | C32: ='Расчет уставок'!H89 -> 1.54
A33: Задержка срабатывания МТЗ ВН при отключенном СВ НН, с | C33: ='Расчет уставок'!H91 -> 1.4
A34: ЗП
A35: Ток срабатывания защиты от перегрузки, А | C35: ='Расчет уставок'!H93 -> 1.75
A36: Задержка срабатывания ЗП, с | C36: ='Расчет уставок'!H95 -> 10
A37: ЛЗШ
A38: Задержка срабатывания ЛЗШ, с | C38: ='Расчет уставок'!H97 -> 0.1
A39: ЛЗТ
A40: Задержка срабатывания ЛЗТ, с | C40: ='Расчет уставок'!H99 -> 0.5
A41: ЗДЗ
A42: Уставка пускового органа ЗДЗ по току, А | C42: ='Расчет уставок'!H101 -> 2.8
A43: ТЗОП НН
A44: Ток срабатывания ТЗОП НН, А | C44: ='Расчет уставок'!H109 -> 1.55
A45: Задержка срабатывания ТЗОП НН на отключение ВВ НН, с | C45: ='Расчет уставок'!H112 -> 1.4
A46: Задержка отключения трансформатора от ТЗОП НН, с | C46: ='Расчет уставок'!H113 -> 0.3
A47: ТЗОП ВН
A48: Ток срабатывания ТЗОП ВН, с | C48: ='Расчет уставок'!H115 -> 0.978031356
A49: Задержка срабатывания ТЗОП ВН, с | C49: ='Расчет уставок'!H117 -> 1.7
A50: ГЗ
A51: Задержка срабатывания первой ступени ГЗ, с | C51: ='Расчет уставок'!H119 -> 0
A52: Задержка срабатывания второй ступени ГЗ, с | C52: ='Расчет уставок'!H120 -> 0
A53: Задержка срабатывания ГЗ РПН, с | C53: ='Расчет уставок'!H121 -> 0
A54: Задержка срабатывания контроля изоляции цепей ГЗ, с | C54: ='Расчет уставок'!H122 -> 0
A55: Задержка срабатывания сигнализации отсутствия питания цепей ГЗ, с | C55: ='Расчет уставок'!H123 -> 10
A56: УРОВ
A57: Уставка токового органа УРОВ, А | C57: ='Расчет уставок'!H125 -> 0.5
A58: Задержка срабатывания УРОВ, с | C58: ='Расчет уставок'!H126 -> 0.2
A61: еееее
